[Event "*** MasterClass Titled Tuesday Blitz"]
[Site "Chess.com"]
[Date "2017.12.12"]
[Round "1"]
[White "GMAkobianSTL"]
[Black "filali-oujda"]
[Result "1-0"]
[WhiteElo "2654"]
[BlackElo "2344"]
[TimeControl "180+2"]
[EndTime "13:07:14 PST"]
[Termination "GMAkobianSTL won by resignation"]

1. d4 {[%clk 0:03:01.9]} 1... c6 {[%clk 0:03:01.9]} 2. c4 {[%clk 0:03:01.4]}
2... d5 {[%clk 0:03:03.8]} 3. cxd5 {[%clk 0:03:00.3]} 3... cxd5 {[%clk 0:03:04]}
4. Nf3 {[%clk 0:03:00.2]} 4... Nf6 {[%clk 0:02:57.4]} 5. Nc3 {[%clk 0:02:59.4]}
5... Nc6 {[%clk 0:02:55.3]} 6. Bf4 {[%clk 0:03:00]} 6... e6 {[%clk 0:02:54.8]}
7. e3 {[%clk 0:03:00.4]} 7... a6 {[%clk 0:02:53.9]} 8. Bd3 {[%clk 0:02:59.3]}
8... Bd6 {[%clk 0:02:53.5]} 9. Bg3 {[%clk 0:03:00]} 9... O-O {[%clk 0:02:53.6]}
10. Ne5 {[%clk 0:02:56.7]} 10... g6 {[%clk 0:02:35.4]} 11. f4 {[%clk 0:02:55.3]}
11... Nh5 {[%clk 0:02:31.6]} 12. Bf2 {[%clk 0:02:53.7]} 12... f6 {[%clk
0:02:28.7]} 13. Nf3 {[%clk 0:02:39.6]} 13... b5 {[%clk 0:02:15.7]} 14. O-O
{[%clk 0:02:32.2]} 14... Bb7 {[%clk 0:02:14.2]} 15. Rc1 {[%clk 0:02:32.4]} 15...
Rc8 {[%clk 0:02:07.3]} 16. Qe2 {[%clk 0:02:31.7]} 16... Qe7 {[%clk 0:01:59.3]}
17. Bh4 {[%clk 0:02:31.4]} 17... Ng7 {[%clk 0:01:52.8]} 18. g4 {[%clk
0:02:26.6]} 18... Qf7 {[%clk 0:01:48]} 19. Bg3 {[%clk 0:02:24.9]} 19... Rfe8
{[%clk 0:01:48]} 20. Qg2 {[%clk 0:02:15.1]} 20... b4 {[%clk 0:01:35.3]} 21. Na4
{[%clk 0:02:12.7]} 21... Na5 {[%clk 0:01:25.4]} 22. b3 {[%clk 0:02:03.2]} 22...
Qe7 {[%clk 0:00:58.5]} 23. Qd2 {[%clk 0:01:58.2]} 23... Nc6 {[%clk 0:00:46.1]}
24. Bh4 {[%clk 0:01:53.6]} 24... Qf7 {[%clk 0:00:27.6]} 25. Ne5 {[%clk
0:01:52.1]} 25... fxe5 {[%clk 0:00:25.4]} 26. fxe5 {[%clk 0:01:52]} 26... Qc7
{[%clk 0:00:21.8]} 27. exd6 {[%clk 0:01:51.9]} 27... Qxd6 {[%clk 0:00:23.7]} 28.
Nc5 {[%clk 0:01:50.8]} 28... Ba8 {[%clk 0:00:23.6]} 29. Bxa6 {[%clk 0:01:50.7]}
29... Rcd8 {[%clk 0:00:25]} 30. Bxd8 {[%clk 0:01:50.6]} 30... Rxd8 {[%clk
0:00:25.2]} 31. Qf2 {[%clk 0:01:50.8]} 31... e5 {[%clk 0:00:24.7]} 32. Bb7
{[%clk 0:01:49.7]} 32... exd4 {[%clk 0:00:24.5]} 33. exd4 {[%clk 0:01:50.3]}
33... Kh8 {[%clk 0:00:22.6]} 34. Bxa8 {[%clk 0:01:46.6]} 34... Rxa8 {[%clk
0:00:24.5]} 35. Rce1 {[%clk 0:01:46.8]} 35... h6 {[%clk 0:00:23.3]} 36. Qf6
{[%clk 0:01:42.2]} 36... Qc7 {[%clk 0:00:18.6]} 37. Ne6 {[%clk 0:01:41.8]} 37...
Qe7 {[%clk 0:00:16.1]} 38. Nxg7 {[%clk 0:01:40.4]} 38... Qxg7 {[%clk 0:00:18]}
39. Qxc6 {[%clk 0:01:40.4]} 39... Rxa2 {[%clk 0:00:19.1]} 40. Qe8+ {[%clk
0:01:39.4]} 40... Kh7 {[%clk 0:00:20.5]} 41. Re7 {[%clk 0:01:38.3]} 1-0

[Event "*** MasterClass Titled Tuesday Blitz"]
[Site "Chess.com"]
[Date "2017.12.12"]
[Round "1"]
[White "MartinZumsande"]
[Black "liquormark"]
[Result "1-0"]
[WhiteElo "2455"]
[BlackElo "2018"]
[TimeControl "180+2"]
[EndTime "13:07:19 PST"]
[Termination "MartinZumsande won by resignation"]

1. e4 {[%clk 0:02:57.4]} 1... c6 {[%clk 0:02:28.9]} 2. d4 {[%clk 0:02:43.5]}
2... d5 {[%clk 0:02:30.7]} 3. exd5 {[%clk 0:02:41.1]} 3... cxd5 {[%clk
0:02:31.2]} 4. c4 {[%clk 0:02:42.6]} 4... e6 {[%clk 0:02:15.2]} 5. Nc3 {[%clk
0:02:42.1]} 5... Nf6 {[%clk 0:02:16.2]} 6. Nf3 {[%clk 0:02:42.6]} 6... Be7
{[%clk 0:02:15.2]} 7. cxd5 {[%clk 0:02:43.7]} 7... exd5 {[%clk 0:02:15]} 8. Bd3
{[%clk 0:02:41.5]} 8... O-O {[%clk 0:01:50.8]} 9. h3 {[%clk 0:02:40.2]} 9... Nc6
{[%clk 0:01:51.5]} 10. O-O {[%clk 0:02:40.7]} 10... Bd7 {[%clk 0:01:48]} 11. Bg5
{[%clk 0:02:39.3]} 11... Rc8 {[%clk 0:01:47.6]} 12. Bxf6 {[%clk 0:02:26.7]}
12... Bxf6 {[%clk 0:01:49]} 13. Nxd5 {[%clk 0:02:27.8]} 13... h6 {[%clk
0:01:18]} 14. Nxf6+ {[%clk 0:02:18.2]} 14... Qxf6 {[%clk 0:01:19.5]} 15. Re1
{[%clk 0:02:04.3]} 15... Rfd8 {[%clk 0:00:58.9]} 16. d5 {[%clk 0:02:00]} 16...
Nb4 {[%clk 0:00:57.5]} 17. Be4 {[%clk 0:01:52.7]} 17... Bf5 {[%clk 0:00:55.4]}
18. Qb3 {[%clk 0:01:33.2]} 18... Bxe4 {[%clk 0:00:49.4]} 19. Rxe4 {[%clk
0:01:35.1]} 19... Nxd5 {[%clk 0:00:35.2]} 20. Qxb7 {[%clk 0:01:31.6]} 20... Rb8
{[%clk 0:00:27.6]} 21. Qxa7 {[%clk 0:01:32.6]} 21... Qxb2 {[%clk 0:00:27.7]} 22.
Rae1 {[%clk 0:01:30.2]} 22... Ra8 {[%clk 0:00:28.1]} 23. Qd4 {[%clk 0:01:09.3]}
23... Qxd4 {[%clk 0:00:26.2]} 24. Rxd4 {[%clk 0:01:10.1]} 24... Rxa2 {[%clk
0:00:27.1]} 25. Red1 {[%clk 0:01:11]} 25... Ra5 {[%clk 0:00:28.3]} 26. Nh2
{[%clk 0:01:07.8]} 26... f5 {[%clk 0:00:18.3]} 27. g4 {[%clk 0:00:54.4]} 27...
f4 {[%clk 0:00:17]} 28. Nf3 {[%clk 0:00:51.2]} 28... Kf8 {[%clk 0:00:17.3]} 29.
Ne5 {[%clk 0:00:51.1]} 29... Ke7 {[%clk 0:00:15.3]} 30. Nc6+ {[%clk 0:00:52]}
1-0

[Event "*** MasterClass Titled Tuesday Blitz"]
[Site "Chess.com"]
[Date "2017.12.12"]
[Round "1"]
[White "marianokar"]
[Black "A-Fier"]
[Result "0-1"]
[WhiteElo "2307"]
[BlackElo "2597"]
[TimeControl "180+2"]
[EndTime "13:07:23 PST"]
[Termination "A-Fier won by resignation"]

1. d4 {[%clk 0:03:01.9]} 1... Nf6 {[%clk 0:03:00.4]} 2. Nf3 {[%clk 0:03:01.5]}
2... g6 {[%clk 0:03:00.6]} 3. c4 {[%clk 0:03:01.3]} 3... Bg7 {[%clk 0:03:01.4]}
4. Nc3 {[%clk 0:03:03.2]} 4... d5 {[%clk 0:03:02]} 5. e3 {[%clk 0:03:01.8]} 5...
O-O {[%clk 0:03:02.1]} 6. Be2 {[%clk 0:02:59.6]} 6... c6 {[%clk 0:03:01.2]} 7.
O-O {[%clk 0:02:59.8]} 7... Bg4 {[%clk 0:03:01.5]} 8. cxd5 {[%clk 0:02:57.5]}
8... Nxd5 {[%clk 0:02:33.5]} 9. e4 {[%clk 0:02:52.9]} 9... Nxc3 {[%clk
0:02:33.5]} 10. bxc3 {[%clk 0:02:53.6]} 10... Nd7 {[%clk 0:02:34.9]} 11. Be3
{[%clk 0:02:53.3]} 11... Bxf3 {[%clk 0:02:34.8]} 12. Bxf3 {[%clk 0:02:53.7]}
12... Qa5 {[%clk 0:02:33.3]} 13. Qb3 {[%clk 0:02:53.5]} 13... Nb6 {[%clk
0:02:33.8]} 14. a4 {[%clk 0:02:52.8]} 14... Rad8 {[%clk 0:02:33.3]} 15. Rfd1
{[%clk 0:02:51.9]} 15... e6 {[%clk 0:02:32.1]} 16. Ra2 {[%clk 0:02:41.7]} 16...
e5 {[%clk 0:02:27.2]} 17. d5 {[%clk 0:02:14.7]} 17... c5 {[%clk 0:02:11.5]} 18.
c4 {[%clk 0:01:52]} 18... Rc8 {[%clk 0:02:00.8]} 19. Rb1 {[%clk 0:01:47.7]}
19... Rc7 {[%clk 0:01:49]} 20. Bd2 {[%clk 0:01:35.9]} 20... Qa6 {[%clk
0:01:49.7]} 21. Be2 {[%clk 0:01:37.8]} 21... Nc8 {[%clk 0:01:48.1]} 22. a5
{[%clk 0:01:35.2]} 22... Nd6 {[%clk 0:01:47.7]} 23. Bd3 {[%clk 0:01:36.2]} 23...
Rb8 {[%clk 0:01:43.4]} 24. Qc2 {[%clk 0:01:34]} 24... Nc8 {[%clk 0:01:38.5]} 25.
Rab2 {[%clk 0:01:30]} 25... Qd6 {[%clk 0:01:39]} 26. h4 {[%clk 0:01:25]} 26...
h5 {[%clk 0:01:37.8]} 27. g3 {[%clk 0:01:25]} 27... Qd8 {[%clk 0:01:38.7]} 28.
Kg2 {[%clk 0:01:25.5]} 28... Nd6 {[%clk 0:01:39.7]} 29. Bc3 {[%clk 0:01:20.1]}
29... Qd7 {[%clk 0:01:40.4]} 30. Re1 {[%clk 0:01:14.8]} 30... Re8 {[%clk
0:01:41]} 31. Ra2 {[%clk 0:01:14.8]} 31... Qd8 {[%clk 0:01:37.4]} 32. Raa1
{[%clk 0:01:15.3]} 32... Rce7 {[%clk 0:01:38.2]} 33. Rab1 {[%clk 0:01:11.8]}
33... Qd7 {[%clk 0:01:39.3]} 34. Ra1 {[%clk 0:01:12.1]} 34... f5 {[%clk
0:01:39.5]} 35. Re2 {[%clk 0:01:03.8]} 35... f4 {[%clk 0:01:34.4]} 36. Ree1
{[%clk 0:01:03.2]} 36... Rf8 {[%clk 0:01:34.6]} 37. Be2 {[%clk 0:01:02.8]} 37...
Ref7 {[%clk 0:01:32.6]} 38. Bd3 {[%clk 0:00:53.3]} 38... Qg4 {[%clk 0:01:31.4]}
39. Qd1 {[%clk 0:00:49.9]} 39... fxg3 {[%clk 0:01:27.2]} 40. Qxg4 {[%clk
0:00:50.6]} 40... hxg4 {[%clk 0:01:29.1]} 41. fxg3 {[%clk 0:00:49.7]} 41... Rf2+
{[%clk 0:01:30.6]} 42. Kg1 {[%clk 0:00:50.6]} 42... R2f3 {[%clk 0:01:32.5]} 43.
Rad1 {[%clk 0:00:47.1]} 43... Rxg3+ {[%clk 0:01:33.3]} 44. Kh2 {[%clk 0:00:49]}
44... Rh3+ {[%clk 0:01:34.5]} 45. Kg2 {[%clk 0:00:50.6]} 45... Rff3 {[%clk
0:01:32.5]} 0-1

[Event "*** MasterClass Titled Tuesday Blitz"]
[Site "Chess.com"]
[Date "2017.12.12"]
[Round "1"]
[White "inegrepus"]
[Black "RitvarsReimanis"]
[Result "0-1"]
[WhiteElo "2033"]
[BlackElo "2457"]
[TimeControl "180+2"]
[EndTime "13:07:37 PST"]
[Termination "RitvarsReimanis won by resignation"]

1. d4 {[%clk 0:03:01.8]} 1... e6 {[%clk 0:02:54.7]} 2. e4 {[%clk 0:03:02.7]}
2... d5 {[%clk 0:02:55.1]} 3. Nd2 {[%clk 0:03:03.7]} 3... c6 {[%clk 0:02:54.6]}
4. Ngf3 {[%clk 0:03:01.5]} 4... f5 {[%clk 0:02:55.7]} 5. exf5 {[%clk 0:03:01.6]}
5... exf5 {[%clk 0:02:57.6]} 6. Bd3 {[%clk 0:03:02.5]} 6... Nf6 {[%clk
0:02:59.1]} 7. O-O {[%clk 0:03:03.3]} 7... Bd6 {[%clk 0:03:00.7]} 8. Re1+ {[%clk
0:03:04.2]} 8... Ne4 {[%clk 0:03:02.1]} 9. c4 {[%clk 0:03:02]} 9... Be6 {[%clk
0:03:01.8]} 10. cxd5 {[%clk 0:03:02.4]} 10... cxd5 {[%clk 0:03:03.7]} 11. Qb3
{[%clk 0:02:56.6]} 11... Qb6 {[%clk 0:03:04]} 12. Bb5+ {[%clk 0:02:17.7]} 12...
Nc6 {[%clk 0:03:03.4]} 13. Nxe4 {[%clk 0:02:14.5]} 13... fxe4 {[%clk 0:03:04.3]}
14. Rxe4 {[%clk 0:02:15.5]} 14... Kd7 {[%clk 0:02:39.4]} 15. Ne5+ {[%clk
0:02:02.3]} 15... Bxe5 {[%clk 0:02:40.3]} 16. Rxe5 {[%clk 0:02:03.5]} 16... Qxd4
{[%clk 0:02:41.5]} 17. Re3 {[%clk 0:01:22.3]} 17... Rhf8 {[%clk 0:02:34.6]} 18.
Qc3 {[%clk 0:00:42.6]} 18... Qxc3 {[%clk 0:02:28.8]} 19. bxc3 {[%clk 0:00:43.6]}
19... a6 {[%clk 0:02:28.6]} 20. Bxc6+ {[%clk 0:00:42.9]} 20... bxc6 {[%clk
0:02:30.1]} 21. Ba3 {[%clk 0:00:43.9]} 21... Rfe8 {[%clk 0:02:31.2]} 22. Rb1
{[%clk 0:00:44.3]} 22... Rab8 {[%clk 0:02:27.8]} 23. Rxb8 {[%clk 0:00:42.2]}
23... Rxb8 {[%clk 0:02:29.7]} 24. h3 {[%clk 0:00:39.2]} 24... Rb1+ {[%clk
0:02:29.8]} 25. Kh2 {[%clk 0:00:40.4]} 25... Ra1 {[%clk 0:02:30.6]} 26. Rg3
{[%clk 0:00:39.6]} 26... g6 {[%clk 0:02:31.1]} 27. Bc5 {[%clk 0:00:36.8]} 27...
Rxa2 {[%clk 0:02:31.4]} 28. Rd3 {[%clk 0:00:34.2]} 28... Ra5 {[%clk 0:02:32.4]}
29. Bb4 {[%clk 0:00:35.1]} 29... Rb5 {[%clk 0:02:33.4]} 30. Rd1 {[%clk
0:00:31.6]} 30... a5 {[%clk 0:02:34.4]} 31. Bf8 {[%clk 0:00:31.9]} 31... Kc7
{[%clk 0:02:30]} 32. Re1 {[%clk 0:00:31.5]} 32... Kd7 {[%clk 0:02:29.8]} 33. Ra1
{[%clk 0:00:31.2]} 33... Rb8 {[%clk 0:02:28.1]} 34. Bg7 {[%clk 0:00:32]} 34...
Ra8 {[%clk 0:02:29.3]} 35. Ra4 {[%clk 0:00:29]} 35... c5 {[%clk 0:02:30.3]} 36.
Be5 {[%clk 0:00:27.3]} 36... Kc6 {[%clk 0:02:31.5]} 37. Bf4 {[%clk 0:00:25.9]}
37... Kb5 {[%clk 0:02:32.1]} 38. Ra1 {[%clk 0:00:26.6]} 38... a4 {[%clk
0:02:33.6]} 39. Rb1+ {[%clk 0:00:26.9]} 39... Kc4 {[%clk 0:02:35]} 40. Be5
{[%clk 0:00:28.4]} 40... a3 {[%clk 0:02:35.8]} 41. Ra1 {[%clk 0:00:23]} 41... a2
{[%clk 0:02:36.2]} 42. Kg3 {[%clk 0:00:24.2]} 42... Bf5 {[%clk 0:02:33.3]} 43.
f4 {[%clk 0:00:24.7]} 43... Bb1 {[%clk 0:02:33.2]} 44. Kf3 {[%clk 0:00:25.7]}
44... Ra3 {[%clk 0:02:26.1]} 45. Ke2 {[%clk 0:00:26.2]} 45... Rxc3 {[%clk
0:02:21.5]} 46. Bxc3 {[%clk 0:00:25.7]} 46... Kxc3 {[%clk 0:02:23.4]} 47. g4
{[%clk 0:00:27.1]} 47... Kb2 {[%clk 0:02:22.8]} 48. Rxa2+ {[%clk 0:00:28.1]}
48... Kxa2 {[%clk 0:02:24.7]} 49. f5 {[%clk 0:00:28.4]} 49... gxf5 {[%clk
0:02:25.5]} 50. g5 {[%clk 0:00:29.7]} 50... Be4 {[%clk 0:02:25.4]} 51. Ke3
{[%clk 0:00:30.7]} 51... d4+ {[%clk 0:02:17.8]} 52. Kf4 {[%clk 0:00:31.5]} 52...
d3 {[%clk 0:02:18]} 53. h4 {[%clk 0:00:33.2]} 53... d2 {[%clk 0:02:18.7]} 54. h5
{[%clk 0:00:34.7]} 54... d1=Q {[%clk 0:02:20.2]} 55. g6 {[%clk 0:00:36.1]} 55...
Qg4+ {[%clk 0:02:21]} 56. Ke5 {[%clk 0:00:37.2]} 56... hxg6 {[%clk 0:02:22.4]}
57. h6 {[%clk 0:00:38.3]} 57... Qh5 {[%clk 0:02:23.1]} 0-1

[Event "*** MasterClass Titled Tuesday Blitz"]
[Site "Chess.com"]
[Date "2017.12.12"]
[Round "1"]
[White "dcremisi"]
[Black "daro94"]
[Result "0-1"]
[WhiteElo "2336"]
[BlackElo "2648"]
[TimeControl "180+2"]
[EndTime "13:07:39 PST"]
[Termination "daro94 won on time"]

1. d4 {[%clk 0:03:01.9]} 1... Nf6 {[%clk 0:02:56.1]} 2. Nf3 {[%clk 0:03:02.3]}
2... d5 {[%clk 0:02:54.6]} 3. Bf4 {[%clk 0:03:02.2]} 3... c5 {[%clk 0:02:51.8]}
4. c3 {[%clk 0:02:59.5]} 4... Qb6 {[%clk 0:02:46.4]} 5. Qc1 {[%clk 0:03:00.1]}
5... Nc6 {[%clk 0:02:44.4]} 6. e3 {[%clk 0:03:00.7]} 6... Bf5 {[%clk 0:02:42.1]}
7. Nbd2 {[%clk 0:03:01.6]} 7... e6 {[%clk 0:02:41.5]} 8. Nh4 {[%clk 0:02:57.3]}
8... Bg6 {[%clk 0:02:30.8]} 9. Nxg6 {[%clk 0:02:57.2]} 9... hxg6 {[%clk
0:02:32.7]} 10. Be2 {[%clk 0:02:56.6]} 10... Be7 {[%clk 0:02:26.9]} 11. O-O
{[%clk 0:02:56.3]} 11... Nh5 {[%clk 0:02:24]} 12. Bg3 {[%clk 0:02:46.8]} 12...
Nxg3 {[%clk 0:02:19.2]} 13. hxg3 {[%clk 0:02:48.7]} 13... Rc8 {[%clk 0:02:19]}
14. Nb3 {[%clk 0:02:49.3]} 14... c4 {[%clk 0:02:00.3]} 15. Nd2 {[%clk
0:02:49.7]} 15... Qc7 {[%clk 0:02:00.3]} 16. b3 {[%clk 0:02:49.4]} 16... b5
{[%clk 0:02:01.5]} 17. b4 {[%clk 0:02:50.5]} 17... a5 {[%clk 0:01:57.5]} 18. a4
{[%clk 0:02:50.8]} 18... axb4 {[%clk 0:01:55.9]} 19. axb5 {[%clk 0:02:51.2]}
19... Na7 {[%clk 0:01:57.5]} 20. Qb1 {[%clk 0:02:44.5]} 20... Nxb5 {[%clk
0:01:50.2]} 21. cxb4 {[%clk 0:02:45.5]} 21... Nc3 {[%clk 0:01:49.5]} 22. Qe1
{[%clk 0:02:45.1]} 22... Nxe2+ {[%clk 0:01:41.3]} 23. Qxe2 {[%clk 0:02:45.6]}
23... Bxb4 {[%clk 0:01:42.9]} 24. Rfb1 {[%clk 0:02:45.3]} 24... Bxd2 {[%clk
0:01:42.8]} 25. Qxd2 {[%clk 0:02:45.8]} 25... O-O {[%clk 0:01:44.4]} 26. Qb4
{[%clk 0:02:44.3]} 26... Ra8 {[%clk 0:01:42.9]} 27. Rxa8 {[%clk 0:02:43.1]}
27... Rxa8 {[%clk 0:01:44.8]} 28. Qb7 {[%clk 0:02:43.7]} 28... Qxb7 {[%clk
0:01:32.2]} 29. Rxb7 {[%clk 0:02:45.4]} 29... Ra1+ {[%clk 0:01:33.7]} 30. Kh2
{[%clk 0:02:45.7]} 30... Rf1 {[%clk 0:01:33.1]} 31. f3 {[%clk 0:02:38.6]} 31...
Re1 {[%clk 0:01:33]} 32. Rb8+ {[%clk 0:02:39.6]} 32... Kh7 {[%clk 0:01:32.8]}
33. Rb7 {[%clk 0:02:39.2]} 33... f5 {[%clk 0:01:32.2]} 34. Kh3 {[%clk
0:02:35.7]} 34... Rxe3 {[%clk 0:01:25]} 35. f4 {[%clk 0:02:35.6]} 35... Re1
{[%clk 0:01:12.8]} 36. Kh2 {[%clk 0:02:32.7]} 36... Rd1 {[%clk 0:01:11.6]} 37.
Re7 {[%clk 0:02:31.9]} 37... Rxd4 {[%clk 0:01:12]} 38. Rxe6 {[%clk 0:02:27.5]}
38... c3 {[%clk 0:01:12.2]} 0-1

[Event "*** MasterClass Titled Tuesday Blitz"]
[Site "Chess.com"]
[Date "2017.12.12"]
[Round "1"]
[White "wonderfultime"]
[Black "TijanaBlagojevic"]
[Result "1-0"]
[WhiteElo "2712"]
[BlackElo "2384"]
[TimeControl "180+2"]
[EndTime "13:07:40 PST"]
[Termination "wonderfultime won by resignation"]

1. d4 {[%clk 0:02:59.8]} 1... d5 {[%clk 0:02:59.2]} 2. Bf4 {[%clk 0:02:59.8]}
2... c5 {[%clk 0:02:56.9]} 3. c3 {[%clk 0:03:00.3]} 3... Nc6 {[%clk 0:02:49]} 4.
e3 {[%clk 0:02:58.9]} 4... Nf6 {[%clk 0:02:46]} 5. Nd2 {[%clk 0:02:56.3]} 5...
cxd4 {[%clk 0:02:45.1]} 6. exd4 {[%clk 0:02:56.7]} 6... Bf5 {[%clk 0:02:45.3]}
7. Ngf3 {[%clk 0:02:48.1]} 7... Nh5 {[%clk 0:02:24.8]} 8. Be5 {[%clk 0:02:28.4]}
8... e6 {[%clk 0:02:19.7]} 9. h3 {[%clk 0:02:24.2]} 9... Nf6 {[%clk 0:02:20.2]}
10. Qb3 {[%clk 0:01:51.5]} 10... Qd7 {[%clk 0:02:18.6]} 11. Bf4 {[%clk
0:01:49.6]} 11... a6 {[%clk 0:02:07.7]} 12. Be2 {[%clk 0:01:47.2]} 12... Be7
{[%clk 0:02:02.4]} 13. O-O {[%clk 0:01:43.4]} 13... O-O {[%clk 0:02:03.6]} 14.
Rfe1 {[%clk 0:01:43.4]} 14... Na5 {[%clk 0:02:04.3]} 15. Qd1 {[%clk 0:01:43.8]}
15... b5 {[%clk 0:02:05.1]} 16. Ne5 {[%clk 0:01:45.1]} 16... Qb7 {[%clk
0:02:06]} 17. b4 {[%clk 0:01:40.6]} 17... Nc4 {[%clk 0:02:06.2]} 18. Nb3 {[%clk
0:01:41.9]} 18... Nd7 {[%clk 0:01:58.5]} 19. Nxd7 {[%clk 0:01:35.1]} 19... Qxd7
{[%clk 0:01:58.3]} 20. Nc5 {[%clk 0:01:37]} 20... Qc6 {[%clk 0:01:57.1]} 21. Qb3
{[%clk 0:01:15.7]} 21... a5 {[%clk 0:01:55.3]} 22. a3 {[%clk 0:01:14.7]} 22...
Ra7 {[%clk 0:01:47.8]} 23. a4 {[%clk 0:01:12.4]} 23... axb4 {[%clk 0:01:44.7]}
24. axb5 {[%clk 0:01:13.3]} 24... Rxa1 {[%clk 0:01:38.8]} 25. Rxa1 {[%clk
0:01:03.3]} 25... Qxb5 {[%clk 0:01:37.6]} 26. Qxb4 {[%clk 0:01:04.6]} 26... Qxb4
{[%clk 0:01:02.2]} 27. cxb4 {[%clk 0:01:06.5]} 27... Bd6 {[%clk 0:01:00.2]} 28.
Bxd6 {[%clk 0:00:57.9]} 28... Nxd6 {[%clk 0:01:02.1]} 29. Ra6 {[%clk 0:00:59.6]}
29... Nc4 {[%clk 0:00:56.3]} 30. b5 {[%clk 0:00:58.2]} 30... Rb8 {[%clk
0:00:56.8]} 31. Nd7 {[%clk 0:00:54.7]} 31... Rd8 {[%clk 0:00:44.8]} 32. b6
{[%clk 0:00:56]} 32... e5 {[%clk 0:00:37.2]} 33. b7 {[%clk 0:00:49.7]} 33... Nd6
{[%clk 0:00:15]} 34. b8=Q {[%clk 0:00:46.8]} 1-0

[Event "*** MasterClass Titled Tuesday Blitz"]
[Site "Chess.com"]
[Date "2017.12.12"]
[Round "1"]
[White "grzechu96"]
[Black "Oleksandr_Bortnyk"]
[Result "0-1"]
[WhiteElo "2424"]
[BlackElo "2834"]
[TimeControl "180+2"]
[EndTime "13:07:46 PST"]
[Termination "Oleksandr_Bortnyk won by resignation"]

1. e4 {[%clk 0:03:01.9]} 1... Nf6 {[%clk 0:02:56.5]} 2. e5 {[%clk 0:03:00.9]}
2... Nd5 {[%clk 0:02:57]} 3. d4 {[%clk 0:03:02.1]} 3... d6 {[%clk 0:02:58.2]} 4.
c4 {[%clk 0:03:03.5]} 4... Nb6 {[%clk 0:02:59.1]} 5. exd6 {[%clk 0:03:05]} 5...
exd6 {[%clk 0:03:00.3]} 6. Nc3 {[%clk 0:03:06.5]} 6... Be7 {[%clk 0:03:01.5]} 7.
Be3 {[%clk 0:03:08.1]} 7... O-O {[%clk 0:03:02.5]} 8. Bd3 {[%clk 0:03:09.8]}
8... Nc6 {[%clk 0:03:03.7]} 9. Nge2 {[%clk 0:02:30.7]} 9... Bg4 {[%clk
0:03:02.8]} 10. Qd2 {[%clk 0:02:05.8]} 10... d5 {[%clk 0:02:54.4]} 11. c5 {[%clk
0:02:03.6]} 11... Nc4 {[%clk 0:02:55.5]} 12. Bxc4 {[%clk 0:02:04.6]} 12... dxc4
{[%clk 0:02:57.4]} 13. O-O {[%clk 0:01:57.9]} 13... Bf6 {[%clk 0:02:30.3]} 14.
f3 {[%clk 0:01:40.5]} 14... Bf5 {[%clk 0:02:27.3]} 15. Rfd1 {[%clk 0:01:34.8]}
15... Re8 {[%clk 0:02:27.3]} 16. Bf2 {[%clk 0:01:32.1]} 16... Nb4 {[%clk
0:02:27.1]} 17. d5 {[%clk 0:01:12.3]} 17... Bd3 {[%clk 0:01:40.9]} 18. Nc1
{[%clk 0:00:52.4]} 18... Bc2 {[%clk 0:00:38.2]} 19. Rf1 {[%clk 0:00:49.3]} 19...
Bg6 {[%clk 0:00:38.5]} 20. Bd4 {[%clk 0:00:45]} 20... Bxd4+ {[%clk 0:00:38.5]}
21. Qxd4 {[%clk 0:00:45.6]} 21... Nc2 {[%clk 0:00:40.4]} 22. Qxc4 {[%clk
0:00:46.4]} 22... Nxa1 {[%clk 0:00:41.3]} 23. Ne4 {[%clk 0:00:47.2]} 23... b5
{[%clk 0:00:34.5]} 24. Qd3 {[%clk 0:00:26.7]} 24... f5 {[%clk 0:00:28.4]} 25.
Nf2 {[%clk 0:00:21.3]} 25... Qe7 {[%clk 0:00:28.5]} 26. Qb1 {[%clk 0:00:18.5]}
26... Qxc5 {[%clk 0:00:29.1]} 27. Qxa1 {[%clk 0:00:19.6]} 27... f4 {[%clk
0:00:30.5]} 28. Kh1 {[%clk 0:00:18.3]} 28... Qxf2 {[%clk 0:00:30.3]} 29. Nb3
{[%clk 0:00:17.7]} 29... Qe3 {[%clk 0:00:25.6]} 30. Qd1 {[%clk 0:00:17.7]} 30...
Rad8 {[%clk 0:00:25.7]} 0-1

[Event "*** MasterClass Titled Tuesday Blitz"]
[Site "Chess.com"]
[Date "2017.12.12"]
[Round "1"]
[White "platy3"]
[Black "Kawhi_Leonard2"]
[Result "1-0"]
[WhiteElo "2556"]
[BlackElo "2257"]
[TimeControl "180+2"]
[EndTime "13:07:48 PST"]
[Termination "platy3 won by resignation"]

1. e4 {[%clk 0:03:00.1]} 1... c5 {[%clk 0:03:00.4]} 2. Nf3 {[%clk 0:03:00.9]}
2... d6 {[%clk 0:03:01.3]} 3. d4 {[%clk 0:03:01.9]} 3... cxd4 {[%clk 0:03:02.5]}
4. Nxd4 {[%clk 0:03:03.3]} 4... Nf6 {[%clk 0:03:03.5]} 5. Nc3 {[%clk 0:03:03.9]}
5... g6 {[%clk 0:03:04.7]} 6. Be3 {[%clk 0:03:01.8]} 6... Bg7 {[%clk 0:03:05.7]}
7. f3 {[%clk 0:03:02.6]} 7... Nc6 {[%clk 0:03:07.1]} 8. Qd2 {[%clk 0:03:03.4]}
8... O-O {[%clk 0:03:08.7]} 9. O-O-O {[%clk 0:03:04.4]} 9... d5 {[%clk
0:03:09.8]} 10. Qe1 {[%clk 0:03:04.8]} 10... e5 {[%clk 0:03:09.6]} 11. Nxc6
{[%clk 0:03:04.8]} 11... bxc6 {[%clk 0:03:10.8]} 12. exd5 {[%clk 0:03:06.3]}
12... Nxd5 {[%clk 0:03:12]} 13. Bc4 {[%clk 0:03:07]} 13... Be6 {[%clk
0:03:12.6]} 14. Kb1 {[%clk 0:03:07.6]} 14... a5 {[%clk 0:03:13.8]} 15. Qd2
{[%clk 0:02:46.5]} 15... Nxe3 {[%clk 0:02:33.9]} 16. Qxe3 {[%clk 0:02:45.6]}
16... Qc8 {[%clk 0:02:34.5]} 17. Qc5 {[%clk 0:02:41.8]} 17... Bxc4 {[%clk
0:02:28.7]} 18. Qxc4 {[%clk 0:02:42.1]} 18... Rb8 {[%clk 0:02:22.6]} 19. Ne4
{[%clk 0:02:40.3]} 19... Qb7 {[%clk 0:02:13.7]} 20. b3 {[%clk 0:02:38.2]} 20...
Qb5 {[%clk 0:02:07]} 21. Qxb5 {[%clk 0:02:26.2]} 21... cxb5 {[%clk 0:02:07.4]}
22. Rd5 {[%clk 0:02:25.6]} 22... a4 {[%clk 0:01:37.4]} 23. b4 {[%clk 0:02:10.1]}
23... f5 {[%clk 0:01:11.2]} 24. Nc5 {[%clk 0:02:02.4]} 24... Rfe8 {[%clk
0:01:06.5]} 25. Re1 {[%clk 0:01:57.7]} 25... Rbc8 {[%clk 0:00:47.3]} 26. Kc1
{[%clk 0:01:43.6]} 26... e4 {[%clk 0:00:36.9]} 27. fxe4 {[%clk 0:01:43.1]} 27...
fxe4 {[%clk 0:00:38]} 28. Rxe4 {[%clk 0:01:39.1]} 28... Rxe4 {[%clk 0:00:37.5]}
29. Nxe4 {[%clk 0:01:39.8]} 29... Rc4 {[%clk 0:00:38.3]} 30. Rd8+ {[%clk
0:01:34.4]} 30... Bf8 {[%clk 0:00:34.2]} 31. Nc5 {[%clk 0:01:35.3]} 31... Kf7
{[%clk 0:00:33.3]} 32. Nd3 {[%clk 0:01:28.4]} 32... Bxb4 {[%clk 0:00:32.3]} 33.
Rb8 {[%clk 0:01:14.7]} 33... Bd6 {[%clk 0:00:31.2]} 34. Rb7+ {[%clk 0:01:08.8]}
34... Kg8 {[%clk 0:00:29.8]} 35. h3 {[%clk 0:01:04.9]} 35... b4 {[%clk
0:00:30.6]} 36. Kd2 {[%clk 0:01:05.2]} 36... h5 {[%clk 0:00:29.6]} 37. Rb6
{[%clk 0:01:01.2]} 37... Bf4+ {[%clk 0:00:18.8]} 38. Nxf4 {[%clk 0:01:01.9]}
38... Rxf4 {[%clk 0:00:19.7]} 39. Rxg6+ {[%clk 0:01:03.3]} 39... Kf7 {[%clk
0:00:20.7]} 40. Rg5 {[%clk 0:01:02.7]} 40... Rf2+ {[%clk 0:00:21]} 41. Kd3
{[%clk 0:01:02.7]} 41... Rxg2 {[%clk 0:00:22.3]} 42. Rxg2 {[%clk 0:01:02.4]} 1-0